fUSD/lending_fUSD_20251026
["ID","MTS","AMOUNT","RATE_DAILY","PERIOD"]
[392423249,1761458990062,-500.0,0.00033701,9]
[392423250,1761458990084,-500.0,0.00033701,9]
[392423251,1761458990107,-500.0,0.00033701,9]
[392423252,1761458990131,-500.0,0.00033701,9]
[392423253,1761458990155,-356.02095289,0.00033701,9]
[392423254,1761458990178,-500.0,0.00033701,9]
[392423255,1761458990201,-500.0,0.00033701,9]
[392423256,1761458990223,-500.0,0.00033701,9]
[392423257,1761458990248,-500.0,0.00033701,9]
[392423258,1761458990271,-500.0,0.00033701,9]
[392423259,1761458990296,-500.0,0.00033701,9]
[392423260,1761458990319,-500.0,0.00033701,9]
[392423261,1761458990344,-500.0,0.00033701,9]
[392423262,1761458990369,-500.0,0.00033701,9]
[392423263,1761458990397,-578.78838907,0.00033701,9]
[392423264,1761458990419,-500.0,0.00033701,9]
[392423265,1761458990444,-500.0,0.00033701,9]
[392423266,1761458990469,-548.34664695,0.00033701,9]
[392423267,1761458990492,-500.0,0.00033701,9]
[392423268,1761458990515,-500.0,0.00033701,9]
[392423269,1761458990539,-500.0,0.00033701,9]
[392423270,1761458990562,-500.0,0.00033701,9]
[392423271,1761458990585,-500.0,0.00033701,9]
[392423272,1761458990608,-500.0,0.00033701,9]
[392423273,1761458990633,-500.0,0.00033701,9]
[392423274,1761458990655,-221.25797823,0.00033701,9]
[392423275,1761458990677,-187.82101304,0.00033701,9]
[392423276,1761458990702,-500.0,0.00033701,9]
[392423277,1761458990726,-500.0,0.00033701,9]
[392423278,1761458990749,-500.0,0.00033701,9]
[392423279,1761458990771,-236.01443324,0.00033701,9]
[392423280,1761458990793,-520.2467576,0.00033701,9]
[392423281,1761458990816,-500.0,0.00033701,9]
[392423282,1761458990839,-500.0,0.00033701,9]
[392423283,1761458990862,-500.0,0.00033701,9]
[392423284,1761458990885,-500.0,0.00033701,9]
[392423285,1761458990908,-402.09599598,0.00033701,9]
[392423286,1761458990930,-500.0,0.00033701,9]
[392423287,1761458990954,-557.32567658,0.00033701,9]
[392423288,1761458990976,-500.0,0.00033701,9]
[392423289,1761458991000,-500.0,0.00033701,9]
[392423290,1761458991023,-500.0,0.00033701,9]
[392423291,1761458991046,-500.0,0.00033701,9]
[392423292,1761458991192,-500.0,0.00033701,9]
[392423293,1761458991219,-500.0,0.00033701,9]
[392423294,1761458991243,-500.0,0.00033701,9]
[392423295,1761458991267,-500.0,0.00033701,9]
[392423296,1761458991295,-500.0,0.00033701,9]
[392423297,1761458991321,-500.0,0.00033701,9]
[392423298,1761458991347,-500.0,0.00033701,9]
[392423299,1761458991370,-500.0,0.00033701,9]
[392423300,1761458991399,-541.57346584,0.00033701,9]
[392423301,1761458991422,-500.0,0.00033701,9]
[392423302,1761458991444,-490.73199176,0.00033701,9]
[392423303,1761458991467,-500.0,0.00033701,9]
[392423304,1761458991490,-500.0,0.00033701,9]
[392423305,1761458991513,-500.0,0.00033701,9]
[392423306,1761458991535,-500.0,0.00033701,9]
[392423307,1761458991557,-500.0,0.00033701,9]
[392423308,1761458991580,-288.28087549,0.00033701,9]
[392423309,1761458991604,-500.0,0.00033701,9]
[392423310,1761458991628,-500.0,0.00033701,9]
[392423311,1761458991652,-500.0,0.00033701,9]
[392423312,1761458991674,-501.39815768,0.00033701,9]
[392423313,1761458991697,-586.64532114,0.00033701,9]
[392423314,1761458991721,-500.0,0.00033701,9]
[392423315,1761458991743,-500.0,0.00033701,9]
[392423316,1761458991767,-500.0,0.00033701,9]
[392423317,1761458991791,-1541.44,0.00033701,9]
[392423318,1761458991815,-500.0,0.00033701,9]
[392423319,1761458991839,-500.0,0.00033701,9]
[392423320,1761458991862,-500.0,0.00033701,9]
[392423321,1761458991887,-500.0,0.00033701,9]
[392423322,1761458991910,-500.0,0.00033701,9]
[392423323,1761458991934,-500.0,0.00033701,9]
[392423324,1761458991957,-500.0,0.00033701,9]
[392423325,1761458991980,-500.0,0.00033701,9]
[392423326,1761458992003,-1562.89,0.00033701,2]
[392423327,1761458992027,-502.96799313,0.00033701,9]
[392423328,1761458992051,-500.0,0.00033701,9]
[392423329,1761458992074,-500.0,0.00033701,9]
[392423330,1761458992097,-974.74,0.00033701,9]
[392423331,1761458992123,-500.0,0.00033701,9]
[392423332,1761458992151,-500.0,0.00033701,9]
[392423333,1761458992174,-500.0,0.00033701,9]
[392423334,1761458992201,-500.0,0.00033701,9]
[392423335,1761458992225,-500.0,0.00033701,9]
[392423336,1761458992252,-500.0,0.00033701,2]
[392423337,1761458992278,-500.0,0.00033701,9]
[392423338,1761458992300,-500.0,0.00033701,9]
[392423339,1761458992323,-151.0,0.00033701,30]
[392423340,1761458992348,-500.0,0.00033701,9]
[392423341,1761458992373,-500.0,0.00033701,9]
[392423342,1761458992401,-500.0,0.00033701,9]
[392423343,1761458992425,-500.0,0.0003371,7]
[392423344,1761458992448,-1063.83096867,0.00033721,5]
[392423345,1761458992470,-500.0,0.00033786,7]
[392423346,1761458992495,-9416.58819841,0.00033798,3]
[392423347,1761458992518,-500.0,0.00033799,7]
[392423348,1761458992541,-400.0,0.000338,12]
[392423349,1761458992564,-500.0,0.00033808,7]
[392423350,1761458992586,-500.0,0.00033808,7]
[392423351,1761458992610,-7625.49718572,0.00033822,3]
[392423352,1761458992633,-500.0,0.00033828,7]
[392423353,1761458992657,-500.0,0.00033832,7]
[392423354,1761458992681,-400.0,0.00033858,5]
[392423355,1761458992706,-168.0,0.00033863,2]
[392423356,1761458992729,-800.0,0.000339,12]
[392423357,1761458992753,-150.0,0.00033918,7]
[392423358,1761458992776,-154.87453523,0.00033918,7]
[392423359,1761458992799,-7625.49718572,0.00033931,3]
[392423360,1761458992823,-500.0,0.00033938,7]
[392423361,1761458992848,-7625.49718572,0.00033941,3]
[392423362,1761458992871,-7625.49718572,0.00033951,3]
[392423363,1761458992895,-7625.49718572,0.00033955,3]
[392423364,1761458992921,-500.0,0.00033961,7]
[392423365,1761458992947,-22876.4915572,0.00033965,3]
[392423366,1761458992973,-298.0,0.00033971,5]
[392423367,1761458992998,-500.0,0.00033971,9]
[392423368,1761458993023,-488.32657596,0.00033971,9]
[392423369,1761458993048,-500.0,0.00033971,9]
[392423370,1761458993073,-500.0,0.00033971,9]
[392423371,1761458993097,-500.0,0.00033971,9]
[392423372,1761458993122,-500.0,0.00033971,9]
[392423373,1761458993145,-500.0,0.00033971,9]
[392423374,1761458993169,-500.0,0.00033971,9]
[392423375,1761458993194,-370.09996919,0.00033971,9]
[392423376,1761458993217,-385.02333532,0.00033975,9]
[392423377,1761458993241,-500.0,0.00033975,9]
[392423378,1761458993266,-500.0,0.00033975,9]
[392423379,1761458993290,-500.0,0.00033975,9]
[392423380,1761458993313,-500.0,0.00033975,9]
[392423381,1761458993339,-631.23288433,0.00033975,9]
[392423382,1761458993362,-500.0,0.00033975,9]
[392423383,1761458993387,-500.0,0.00033975,9]
[392423384,1761458993410,-500.0,0.00033975,9]
[392423385,1761458993433,-500.0,0.00033975,9]
[392423386,1761458993456,-500.0,0.00033975,9]
[392423387,1761458993480,-500.0,0.00033975,9]
[392423388,1761458993502,-500.0,0.00033975,9]
[392423389,1761458993525,-500.0,0.00033975,9]
[392423390,1761458993549,-500.0,0.00033975,9]
[392423391,1761458993577,-500.0,0.00033975,9]
[392423392,1761458993601,-500.0,0.00033975,9]
[392423393,1761458993625,-500.0,0.00033975,9]
[392423394,1761458993650,-500.0,0.00033975,9]
[392423395,1761458993675,-500.0,0.00033975,9]
[392423396,1761458993698,-500.0,0.00033975,9]
[392423397,1761458993723,-500.0,0.00033975,9]
[392423398,1761458993749,-481.76163229,0.00033975,9]
[392423399,1761458993773,-500.0,0.00033975,9]
[392423400,1761458993797,-356.46010383,0.00033975,9]
[392423401,1761458993820,-500.0,0.00033975,9]
[392423402,1761458993844,-500.0,0.00033975,9]
[392423403,1761458993868,-500.0,0.00033975,9]
[392423404,1761458993891,-500.0,0.00033975,9]
[392423405,1761458993915,-500.0,0.00033975,9]
[392423406,1761458993939,-500.0,0.00033975,9]
[392423407,1761458993962,-500.0,0.00033975,9]
[392423408,1761458993986,-500.0,0.00033975,9]
[392423409,1761458994009,-500.0,0.00033975,9]
[392423410,1761458994032,-265.94195547,0.00033975,9]
[392423411,1761458994056,-500.0,0.00033975,9]
[392423412,1761458994081,-500.0,0.00033975,9]
[392423413,1761458994104,-500.0,0.00033975,9]
[392423414,1761458994127,-500.0,0.00033975,9]
[392423415,1761458994150,-500.0,0.00033975,9]
[392423416,1761458994174,-500.0,0.00033975,9]
[392423417,1761458994198,-500.0,0.00033975,9]
[392423418,1761458994340,-500.0,0.00033975,9]
[392423419,1761458994364,-500.0,0.00033975,9]
[392423420,1761458994389,-500.0,0.00033975,9]
[392423421,1761458994415,-500.0,0.00033975,9]
[392423422,1761458994439,-500.0,0.00033975,9]
[392423423,1761458994464,-641.64418388,0.00033975,9]
[392423424,1761458994488,-432.67558804,0.00033975,9]
[392423425,1761458994512,-500.0,0.00033975,9]
[392423426,1761458994536,-521.53910662,0.00033975,9]
[392423427,1761458994560,-500.0,0.00033975,9]
[392423428,1761458994583,-500.0,0.00033975,9]
[392423429,1761458994606,-500.0,0.00033975,9]
[392423430,1761458994631,-500.0,0.00033975,9]
[392423431,1761458994656,-544.59733413,0.00033975,9]
[392423432,1761458994680,-500.0,0.00033975,9]
[392423433,1761458994705,-500.0,0.00033975,9]
[392423434,1761458994728,-500.0,0.00033975,9]
[392423435,1761458994751,-500.0,0.00033975,9]
[392423436,1761458994774,-500.0,0.00033975,9]
[392423437,1761458994797,-500.0,0.00033975,9]
[392423438,1761458994820,-500.0,0.00033975,9]
[392423439,1761458994843,-282.50634817,0.00033975,9]
[392423440,1761458994866,-500.0,0.00033975,9]
[392423441,1761458994889,-500.0,0.00033975,9]
[392423442,1761458994913,-500.0,0.00033975,9]
[392423443,1761458994937,-500.0,0.00033975,9]
[392423444,1761458994960,-500.0,0.00033975,9]
[392423445,1761458994985,-500.0,0.00033975,9]
[392423446,1761458995009,-1541.44,0.00033975,9]
[392423447,1761458995034,-541.44137876,0.00033975,9]
[392423448,1761458995058,-500.0,0.00033975,9]
[392423449,1761458995081,-500.0,0.00033975,9]
[392423450,1761458995103,-500.0,0.00033975,9]
[392423451,1761458995126,-363.07756123,0.00033975,9]
[392423452,1761458995149,-500.0,0.00033975,9]
[392423453,1761458995176,-500.0,0.00033975,9]
[392423454,1761458995201,-1562.89,0.00033975,2]
[392423455,1761458995226,-500.0,0.00033975,9]
[392423456,1761458995253,-974.74,0.00033975,9]
[392423457,1761458995277,-500.0,0.00033975,9]
[392423458,1761458995300,-500.0,0.00033975,9]
[392423459,1761458995325,-500.0,0.00033975,9]
[392423460,1761458995349,-500.0,0.00033975,9]
[392423461,1761458995374,-500.0,0.00033975,2]
[392423462,1761458995402,-500.0,0.00033975,9]
[392423463,1761458995427,-393.44991415,0.00033975,9]
[392423464,1761458995451,-500.0,0.00033975,9]
[392423465,1761458995475,-500.0,0.00033975,9]
[392423466,1761458995497,-215.0,0.00034,11]
[392423467,1761458995525,-500.0,0.00034009,7]
[392423468,1761458995548,-232.06,0.00034017,2]
[392423469,1761458995571,-162.32861673,0.00034041,9]
[392423470,1761458995596,-811.28735621,0.00034043,2]
[392423471,1761458995619,-166.66,0.00034076,2]
[392423472,1761458995645,-215.0,0.000341,12]
[392423473,1761458995672,-274.0,0.00034114,2]
[392423474,1761458995696,-7625.49718572,0.00034114,3]
[392423475,1761458995724,-816.42792038,0.00034124,7]
[392423476,1761458995749,-7625.49718572,0.0003416,3]
[392423477,1761458995774,-7625.49718572,0.00034169,3]
[392423478,1761458995799,-151.0,0.0003417,30]
[392423479,1761458995824,-151.0,0.0003417,30]
[392423480,1761458995849,-151.0,0.0003417,30]
[392423481,1761458995874,-279.194853,0.0003417,30]
[392423482,1761458995899,-274.36483822,0.0003417,2]
[392423483,1761458995925,-7625.49718572,0.0003417,3]
[392423484,1761458995950,-7625.49718572,0.00034174,3]
[392423485,1761458995979,-15250.9943714,0.0003418,3]
[392423486,1761458996006,-500.0,0.00034189,9]
[392423487,1761458996031,-30501.9887429,0.0003419,3]
[392423488,1761458996058,-5000.0,0.000342,2]
[392423489,1761458996082,-5000.0,0.000342,2]
[392423490,1761458996105,-5000.0,0.000342,2]
[392423491,1761458996128,-5000.0,0.000342,2]
[392423492,1761458996152,-5000.0,0.000342,2]
[392423493,1761458996174,-5000.0,0.000342,2]
[392423494,1761458996197,-5000.0,0.000342,2]
[392423495,1761458996220,-5000.0,0.000342,2]
[392423496,1761458996244,-5000.0,0.000342,2]
[392423497,1761458996268,-5000.0,0.000342,2]
[392423498,1761458996293,-5000.0,0.000342,2]
[392423499,1761458996317,-5000.0,0.000342,2]
[392423500,1761458996340,-5000.0,0.000342,2]
[392423501,1761458996363,-3174.0,0.000342,2]
[392423502,1761458996390,-157.0,0.000342,30]
[392423503,1761458996415,-7625.49718572,0.00034235,3]
[392423504,1761458996444,-7625.49718572,0.00034239,3]
[392423505,1761458996467,-500.0,0.00034245,9]
[392423506,1761458996491,-500.0,0.00034245,9]
[392423507,1761458996514,-289.47169174,0.00034245,9]
[392423508,1761458996540,-500.0,0.00034245,9]
[392423509,1761458996566,-500.0,0.00034245,9]
[392423510,1761458996591,-500.0,0.00034245,7]
[392423511,1761458996614,-500.0,0.00034249,9]
[392423512,1761458996640,-500.0,0.00034249,9]
[392423513,1761458996663,-500.0,0.00034249,9]
[392423514,1761458996690,-500.0,0.00034249,9]
[392423515,1761458996713,-500.0,0.00034249,9]
[392423516,1761458996736,-213.97407239,0.00034249,9]
[392423517,1761458996759,-500.0,0.00034249,9]
[392423518,1761458996782,-500.0,0.00034249,9]
[392423519,1761458996805,-500.0,0.00034249,9]
[392423520,1761458996828,-500.0,0.00034249,9]
[392423521,1761458996851,-500.0,0.00034249,9]
[392423522,1761458996874,-500.0,0.00034249,9]
[392423523,1761458996897,-500.0,0.00034249,9]
[392423524,1761458996921,-500.0,0.00034249,9]
[392423525,1761458996949,-500.0,0.00034249,9]
[392423526,1761458996974,-500.0,0.00034249,9]
[392423527,1761458996997,-444.784726,0.00034249,9]
[392423528,1761458997021,-567.92890379,0.00034249,9]
[392423529,1761458997045,-500.0,0.00034249,9]
[392423530,1761458997069,-500.0,0.00034249,9]
[392423531,1761458997093,-500.0,0.00034249,9]
[392423532,1761458997116,-500.0,0.00034249,9]
[392423533,1761458997141,-500.0,0.00034249,9]
[392423534,1761458997165,-446.6462566,0.00034249,9]
[392423535,1761458997192,-500.0,0.00034249,9]
[392423536,1761458997216,-177.07459506,0.00034249,9]
[392423537,1761458997241,-500.0,0.00034249,9]
[392423538,1761458997393,-500.0,0.00034249,9]
[392423539,1761458997422,-500.0,0.00034249,9]
[392423540,1761458997446,-500.0,0.00034249,9]
[392423541,1761458997472,-500.0,0.00034249,9]
[392423542,1761458997496,-500.0,0.00034249,9]
[392423543,1761458997520,-500.0,0.00034249,9]
[392423544,1761458997543,-500.0,0.00034249,9]
[392423545,1761458997572,-500.0,0.00034249,9]
[392423546,1761458997604,-349.86639682,0.00034249,9]
[392423547,1761458997629,-500.0,0.00034249,9]
[392423548,1761458997654,-500.0,0.00034249,9]
[392423549,1761458997680,-1541.44,0.00034249,9]
[392423550,1761458997705,-500.0,0.00034249,9]
[392423551,1761458997730,-500.0,0.00034249,9]
[392423552,1761458997755,-500.0,0.00034249,9]
[392423553,1761458997779,-1562.89,0.00034249,2]
[392423554,1761458997804,-500.0,0.00034249,9]
[392423555,1761458997830,-974.74,0.00034249,9]
[392423556,1761458997855,-500.0,0.00034249,9]
[392423557,1761458997881,-500.0,0.00034249,9]
[392423558,1761458997908,-500.0,0.00034249,9]
[392423559,1761458997933,-500.0,0.00034249,2]
[392423560,1761458997959,-500.0,0.00034249,9]
[392423561,1761458997985,-500.0,0.00034249,9]
[392423562,1761458998011,-500.0,0.00034249,9]
[392423563,1761458998041,-500.0,0.0003427,7]
[392423564,1761458998068,-500.0,0.00034285,7]
[392423565,1761458998093,-5000.0,0.000343,5]
[392423566,1761458998118,-5000.0,0.000343,5]
[392423567,1761458998143,-5000.0,0.000343,5]
[392423568,1761458998168,-5000.0,0.000343,5]
[392423569,1761458998194,-5000.0,0.000343,5]
[392423570,1761458998219,-5000.0,0.000343,5]
[392423571,1761458998244,-356.98034082,0.000343,7]
[392423572,1761458998273,-322.74,0.00034316,2]
[392423573,1761458998298,-500.0,0.00034329,2]
[392423574,1761458998322,-945.28398078,0.00034366,7]
[392423575,1761458998349,-272.0,0.00034377,2]
[392423576,1761458998376,-265.0,0.00034412,2]
[392423577,1761458998405,-811.28735621,0.00034447,2]
[392423578,1761458998429,-503.87413955,0.00034488,7]
[392423579,1761458998453,-300.0,0.000345,2]
[392423580,1761458998478,-345.59149885,0.000345,2]
[392423581,1761458998502,-300.0,0.00034512,7]
[392423582,1761458998526,-304.10728981,0.00034518,9]
[392423583,1761458998552,-500.0,0.00034519,9]
[392423584,1761458998576,-500.0,0.00034519,9]
[392423585,1761458998600,-500.0,0.00034519,9]
[392423586,1761458998625,-500.0,0.00034519,9]
[392423587,1761458998652,-265.0,0.00034523,7]
[392423588,1761458998677,-500.0,0.00034523,9]
[392423589,1761458998702,-455.2262565,0.00034523,9]
[392423590,1761458998729,-153.62921877,0.00034523,9]
[392423591,1761458998754,-500.0,0.00034523,9]
[392423592,1761458998778,-500.0,0.00034523,9]
[392423593,1761458998802,-360.39433625,0.00034523,9]
[392423594,1761458998827,-500.0,0.00034523,9]
[392423595,1761458998852,-500.0,0.00034523,9]
[392423596,1761458998877,-560.24710349,0.00034523,9]
[392423597,1761458998901,-500.0,0.00034523,9]
[392423598,1761458998926,-515.00353571,0.00034523,9]
[392423599,1761458998951,-500.0,0.00034523,9]
[392423600,1761458998978,-500.0,0.00034523,9]
[392423601,1761458999004,-500.0,0.00034523,9]
[392423602,1761458999029,-633.37726133,0.00034523,9]
[392423603,1761458999053,-500.0,0.00034523,9]
[392423604,1761458999078,-500.0,0.00034523,9]
[392423605,1761458999102,-500.0,0.00034523,9]
[392423606,1761458999126,-407.40423748,0.00034523,9]
[392423607,1761458999150,-500.0,0.00034523,9]
[392423608,1761458999175,-500.0,0.00034523,9]
[392423609,1761458999200,-500.0,0.00034523,9]
[392423610,1761458999228,-500.0,0.00034523,9]
[392423611,1761458999252,-500.0,0.00034523,9]
[392423612,1761458999276,-500.0,0.00034523,9]
[392423613,1761458999301,-500.0,0.00034523,9]
[392423614,1761458999324,-500.0,0.00034523,9]
[392423615,1761458999349,-1541.44,0.00034523,9]
[392423616,1761458999376,-232.29525644,0.00034523,9]
[392423617,1761458999405,-500.0,0.00034523,9]
[392423618,1761458999430,-1562.89,0.00034523,2]
[392423619,1761458999455,-176.10312832,0.00034523,9]
[392423620,1761458999481,-500.0,0.00034523,9]
[392423621,1761458999506,-974.74,0.00034523,9]
[392423622,1761458999531,-500.0,0.00034523,9]
[392423623,1761458999554,-500.0,0.00034523,9]
[392423624,1761458999578,-500.0,0.00034523,9]
[392423625,1761458999601,-500.0,0.00034523,2]
[392423626,1761458999626,-500.0,0.00034523,9]
[392423627,1761458999651,-500.0,0.00034523,9]
[392423628,1761458999675,-500.0,0.00034536,7]
[392423629,1761458999699,-500.0,0.00034538,7]
[392423630,1761458999723,-500.0,0.00034581,7]
[392423631,1761458999746,-500.0,0.00034603,2]
[392423632,1761458999770,-500.0,0.00034603,9]
[392423633,1761458999806,-500.0,0.00034618,7]
[392423634,1761458999830,-500.0,0.00034622,7]
[392423635,1761458999854,-500.0,0.00034752,7]
[392423636,1761458999879,-500.0,0.00034777,7]
[392423637,1761458999903,-500.0,0.00034777,2]
[392423638,1761458999928,-500.0,0.00034793,9]
[392423639,1761458999952,-500.0,0.00034793,9]
[392423640,1761458999980,-500.0,0.00034793,9]
[392423641,1761459000012,-437.25991413,0.00034793,9]
[392423642,1761459000036,-500.0,0.00034794,7]
[392423643,1761459000061,-500.0,0.00034797,9]
[392423644,1761459000086,-500.0,0.00034797,9]
[392423645,1761459000111,-500.0,0.00034797,9]
[392423646,1761459000139,-500.0,0.00034797,9]
[392423647,1761459000164,-500.0,0.00034797,9]
[392423648,1761459000189,-500.0,0.00034797,9]
[392423649,1761459000213,-500.0,0.00034797,9]
[392423650,1761459000243,-500.0,0.00034797,9]
[392423651,1761459000267,-500.0,0.00034797,9]
[392423652,1761459000292,-500.0,0.00034797,9]
[392423653,1761459000317,-500.0,0.00034797,9]
[392423654,1761459000342,-500.0,0.00034797,9]
[392423655,1761459000549,-500.0,0.00034797,9]
[392423656,1761459000576,-500.0,0.00034797,9]
[392423657,1761459000603,-500.0,0.00034797,9]
[392423658,1761459000632,-500.0,0.00034797,9]
[392423659,1761459000657,-356.75194001,0.00034797,9]
[392423660,1761459000682,-500.0,0.00034797,9]
[392423661,1761459000707,-292.77544322,0.00034797,9]
[392423662,1761459000731,-500.0,0.00034797,9]
[392423663,1761459000757,-1541.44,0.00034797,9]
[392423664,1761459000780,-500.0,0.00034797,9]
[392423665,1761459000806,-1562.89,0.00034797,2]
[392423666,1761459000830,-483.084696,0.00034797,9]
[392423667,1761459000859,-974.74,0.00034797,9]
[392423668,1761459000882,-500.0,0.00034797,9]
[392423669,1761459000907,-500.0,0.00034797,9]
[392423670,1761459000930,-500.0,0.00034797,9]
[392423671,1761459000953,-500.0,0.00034797,2]
[392423672,1761459000977,-500.0,0.00034797,9]
[392423673,1761459001003,-500.0,0.00034797,9]
[392423674,1761459001027,-811.28735621,0.00034851,2]
[392423675,1761459001050,-500.0,0.00034876,9]
[392423676,1761459001076,-378.3924,0.00034876,2]
[392423677,1761459001099,-505.03916592,0.00034877,2]
[392423678,1761459001123,-500.0,0.00034877,9]
[392423679,1761459001150,-500.0,0.00034913,7]
[392423680,1761459001177,-500.0,0.00034923,7]
[392423681,1761459001201,-500.0,0.0003498,7]
[392423682,1761459001225,-240.0,0.00035,7]
[392423683,1761459001250,-500.0,0.00035,7]
[392423684,1761459001274,-500.0,0.00035,7]
[392423685,1761459001298,-500.0,0.00035,7]
[392423686,1761459001323,-500.0,0.00035,7]
[392423687,1761459001346,-500.0,0.00035,7]
[392423688,1761459001369,-500.0,0.00035,7]
[392423689,1761459001395,-500.0,0.00035,7]
[392423690,1761459001419,-500.0,0.00035,5]
[392423691,1761459001443,-500.0,0.00035,5]
[392423692,1761459001469,-500.0,0.00035,5]
[392423693,1761459001492,-500.0,0.00035,5]
[392423694,1761459001516,-500.0,0.00035,5]
[392423695,1761459001542,-500.0,0.00035,5]
[392423696,1761459001566,-500.0,0.00035024,30]
[392423697,1761459001591,-500.0,0.00035067,9]
[392423698,1761459001615,-359.26445452,0.00035067,9]
[392423699,1761459001639,-500.0,0.00035067,9]
[392423700,1761459001663,-321.46965157,0.00035071,9]
[392423701,1761459001687,-500.0,0.00035071,9]
[392423702,1761459001711,-500.0,0.00035071,9]
[392423703,1761459001736,-500.0,0.00035071,9]
[392423704,1761459001760,-226.07612972,0.00035071,9]
[392423705,1761459001786,-166.3353833,0.00035071,9]
[392423706,1761459001811,-500.0,0.00035071,9]
[392423707,1761459001839,-500.0,0.00035071,9]
[392423708,1761459001864,-500.0,0.00035071,9]
[392423709,1761459001891,-500.0,0.00035071,9]
[392423710,1761459001918,-500.0,0.00035071,9]
[392423711,1761459001944,-500.0,0.00035071,9]
[392423712,1761459001973,-212.80667411,0.00035071,9]
[392423713,1761459001999,-500.0,0.00035071,9]
[392423714,1761459002024,-500.0,0.00035071,9]
[392423715,1761459002049,-500.0,0.00035071,9]
[392423716,1761459002073,-500.0,0.00035071,9]
[392423717,1761459002098,-500.0,0.00035071,9]
[392423718,1761459002123,-1541.44,0.00035071,9]
[392423719,1761459002148,-500.0,0.00035071,9]
[392423720,1761459002173,-1562.89,0.00035071,2]
[392423721,1761459002199,-974.74,0.00035071,9]
[392423722,1761459002224,-500.0,0.00035071,9]
[392423723,1761459002249,-500.0,0.00035071,9]
[392423724,1761459002274,-500.0,0.00035071,9]
[392423725,1761459002299,-500.0,0.00035071,2]
[392423726,1761459002325,-500.0,0.00035071,9]
[392423727,1761459002349,-500.0,0.00035071,9]
[392423728,1761459002373,-500.0,0.00035094,30]
[392423729,1761459002400,-500.0,0.00035104,30]
[392423730,1761459002424,-500.0,0.0003513,30]
[392423731,1761459002448,-500.0,0.00035159,30]
[392423732,1761459002473,-500.0,0.00035225,30]
[392423733,1761459002497,-500.0,0.00035234,30]
[392423734,1761459002522,-500.0,0.00035249,30]
[392423735,1761459002547,-811.28735621,0.00035255,2]
[392423736,1761459002572,-500.0,0.0003526,30]
[392423737,1761459002597,-500.0,0.00035278,30]
[392423738,1761459002624,-151.0,0.0003534,30]
[392423739,1761459002651,-151.0,0.0003534,30]
[392423740,1761459002678,-151.0,0.0003534,30]
[392423741,1761459002706,-500.0,0.00035341,9]
[392423742,1761459002733,-500.0,0.00035341,9]
[392423743,1761459002757,-500.0,0.00035345,9]
[392423744,1761459002781,-500.0,0.00035345,9]
[392423745,1761459002808,-620.53937051,0.00035345,9]
[392423746,1761459002833,-500.0,0.00035345,9]
[392423747,1761459002858,-500.0,0.00035345,9]
[392423748,1761459002883,-500.0,0.00035345,9]